fUST/lending_fUST_20250717
["ID","MTS","AMOUNT","RATE_DAILY","PERIOD"]
[372633289,1752719444252,-164.19832,0.00018195,2]
[372633290,1752719444262,-978.98483813,0.00018365,2]
[372633291,1752719444271,-460.0,0.00018454,2]
[372633292,1752719444280,-460.0,0.00018454,2]
[372633293,1752719444290,-460.0,0.00018454,2]
[372633294,1752719444300,-460.0,0.00018454,2]
[372633295,1752719444309,-460.0,0.00018454,2]
[372633296,1752719444407,-352.52850728,0.00018455,2]
[372633297,1752719444417,-460.0,0.00018455,2]
[372633298,1752719444426,-460.0,0.00018455,2]
[372633299,1752719444436,-460.0,0.00018455,2]
[372633300,1752719444445,-460.0,0.00018455,2]
[372633301,1752719444455,-460.0,0.00018456,2]
[372633302,1752719444465,-460.0,0.00018456,2]
[372633303,1752719444474,-481.52580542,0.00018456,2]
[372633304,1752719444484,-460.0,0.00018456,2]
[372633305,1752719444493,-460.0,0.00018456,2]
[372633306,1752719444502,-460.0,0.00018456,2]
[372633307,1752719444511,-462.96482756,0.00018456,2]
[372633308,1752719444521,-460.0,0.00018456,2]
[372633309,1752719444530,-460.0,0.00018456,2]
[372633310,1752719444539,-460.0,0.00018456,2]
[372633311,1752719444548,-6803.47,0.00018456,2]
[372633312,1752719444558,-3924.16,0.00018456,2]
[372633313,1752719444567,-460.0,0.00018456,2]
[372633314,1752719444577,-969.65,0.00018456,2]
[372633315,1752719444586,-460.0,0.00018456,2]
[372633316,1752719444595,-491.17,0.00018456,2]
[372633317,1752719444605,-460.0,0.00018456,2]
[372633318,1752719444615,-460.0,0.00018456,2]
[372633319,1752719444624,-3078.04,0.00018456,2]
[372633320,1752719444634,-2574.76,0.00018456,2]
[372633321,1752719444644,-460.0,0.00018456,2]
[372633322,1752719444655,-460.0,0.00018456,2]
[372633323,1752719444666,-2463.94,0.00018456,2]
[372633324,1752719444676,-749.21,0.00018456,2]
[372633325,1752719444685,-460.0,0.00018456,2]
[372633326,1752719444695,-461.73410169,0.00018458,2]
[372633327,1752719444704,-462.37299387,0.00018458,2]
[372633328,1752719444713,-565.88145863,0.00018458,2]
[372633329,1752719444724,-609.64650681,0.00018458,2]
[372633330,1752719444734,-460.0,0.00018458,2]
[372633331,1752719444743,-460.0,0.00018458,2]
[372633332,1752719444754,-460.0,0.00018458,2]
[372633333,1752719444765,-460.0,0.00018458,2]
[372633334,1752719444774,-1864.41,0.00018458,2]
[372633335,1752719444784,-460.0,0.00018458,2]
[372633336,1752719444794,-529.36,0.00018458,2]
[372633337,1752719444803,-460.0,0.00018458,2]
[372633338,1752719444812,-741.74,0.00018458,2]
[372633339,1752719444822,-460.0,0.00018458,2]
[372633340,1752719444831,-653.85,0.00018458,2]
[372633341,1752719444840,-668.12,0.00018458,2]
[372633342,1752719444850,-460.0,0.00018458,2]
[372633343,1752719444859,-460.0,0.00018458,2]
[372633344,1752719444868,-719.56,0.00018458,2]
[372633345,1752719444877,-1314.57,0.00018458,2]
[372633346,1752719444887,-460.0,0.00018458,2]
[372633347,1752719444896,-691.68,0.00018458,2]
[372633348,1752719444907,-460.0,0.00018458,2]
[372633349,1752719444916,-463.24956275,0.00018458,2]
[372633350,1752719444925,-460.0,0.00018458,2]
[372633351,1752719444935,-460.0,0.00018458,2]
[372633352,1752719444944,-460.0,0.00018458,2]
[372633353,1752719444954,-301.97518595,0.00018458,2]
[372633354,1752719444963,-460.0,0.00018458,2]
[372633355,1752719444974,-460.0,0.00018458,2]
[372633356,1752719444984,-460.0,0.00018458,2]
[372633357,1752719444994,-1569.29,0.00018458,2]
[372633358,1752719445003,-460.0,0.00018458,2]
[372633359,1752719445014,-460.0,0.00018459,2]
[372633360,1752719445023,-460.0,0.00018459,2]
[372633361,1752719445033,-460.0,0.00018462,2]
[372633362,1752719445042,-460.0,0.00018462,2]
[372633363,1752719445052,-460.0,0.00018462,2]
[372633364,1752719445062,-460.0,0.00018462,2]
[372633365,1752719445072,-463.16326506,0.00018462,2]
[372633366,1752719445081,-460.0,0.00018462,2]
[372633367,1752719445091,-460.0,0.00018462,2]
[372633368,1752719445100,-467.43610728,0.00018462,2]
[372633369,1752719445109,-464.38462628,0.00018462,2]
[372633370,1752719445119,-609.56642793,0.00018462,2]
[372633371,1752719445130,-151.0,0.00018462,2]
[372633372,1752719445142,-151.0,0.00018462,2]
[372633373,1752719445152,-460.0,0.00018462,2]
[372633374,1752719445161,-463.66057131,0.00018462,2]
[372633375,1752719445171,-151.0,0.00018462,2]
[372633376,1752719445182,-460.0,0.00018462,2]
[372633377,1752719445191,-463.22840095,0.00018462,2]
[372633378,1752719445201,-460.0,0.00018462,2]
[372633379,1752719445213,-708.24,0.00018462,2]
[372633380,1752719445223,-460.0,0.00018462,2]
[372633381,1752719445232,-460.0,0.00018462,2]
[372633382,1752719445241,-567.86,0.00018462,2]
[372633383,1752719445251,-464.09027696,0.00018462,2]
[372633384,1752719445260,-460.0,0.00018462,2]
[372633385,1752719445270,-460.0,0.00018462,2]
[372633386,1752719445279,-460.0,0.00018462,2]
[372633387,1752719445288,-460.0,0.00018462,2]
[372633388,1752719445297,-4688.52,0.00018462,2]
[372633389,1752719445307,-462.41957728,0.00018462,2]
[372633390,1752719445316,-460.0,0.00018462,2]
[372633391,1752719445325,-731.29,0.00018462,2]
[372633392,1752719445334,-460.0,0.00018462,2]
[372633393,1752719445344,-460.0,0.00018463,2]
[372633394,1752719445353,-467.4617886,0.00018463,2]
[372633395,1752719445362,-460.0,0.00018463,2]
[372633396,1752719445372,-460.0,0.00018463,2]
[372633397,1752719445383,-560.39,0.00018463,2]
[372633398,1752719445392,-745.09,0.00018463,2]
[372633399,1752719445402,-460.0,0.00018463,2]
[372633400,1752719445416,-801.54,0.00018463,2]
[372633401,1752719445425,-460.0,0.00018463,2]
[372633402,1752719445434,-460.0,0.00018463,2]
[372633403,1752719445443,-471.82055495,0.00018463,2]
[372633404,1752719445453,-460.0,0.00018463,2]
[372633405,1752719445462,-572.02,0.00018463,2]
[372633406,1752719445472,-460.0,0.00018463,2]
[372633407,1752719445481,-460.0,0.00018463,2]
[372633408,1752719445490,-495.28,0.00018463,2]
[372633409,1752719445500,-460.0,0.00018463,2]
[372633410,1752719445509,-896.34,0.00018463,2]
[372633411,1752719445518,-464.2853752,0.00018463,2]
[372633412,1752719445527,-460.0,0.00018463,2]
[372633413,1752719445537,-462.98753054,0.00018463,2]
[372633414,1752719445547,-465.46566513,0.00018463,2]
[372633415,1752719445556,-948.09,0.00018463,2]
[372633416,1752719445566,-463.64171369,0.00018463,2]
[372633417,1752719445575,-460.0,0.00018463,2]
[372633418,1752719445585,-460.0,0.00018463,2]
[372633419,1752719445595,-460.0,0.00018463,2]
[372633420,1752719445605,-472.06274013,0.00018463,2]
[372633421,1752719445614,-460.0,0.00018463,2]
[372633422,1752719445624,-463.80168736,0.00018463,2]
[372633423,1752719445635,-460.0,0.00018463,2]
[372633424,1752719445644,-580.0,0.00018463,2]
[372633425,1752719445653,-802.39,0.00018463,2]
[372633426,1752719445663,-528.16,0.00018463,2]
[372633427,1752719445672,-460.0,0.00018463,2]
[372633428,1752719445681,-460.0,0.00018463,2]
[372633429,1752719445691,-460.0,0.00018463,2]
[372633430,1752719445700,-461.78780498,0.00018463,2]
[372633431,1752719445709,-585.87,0.00018463,2]
[372633432,1752719445719,-460.0,0.00018463,2]
[372633433,1752719445728,-460.0,0.00018463,2]
[372633434,1752719445737,-1881.04,0.00018464,2]
[372633435,1752719445747,-460.0,0.00018464,2]
[372633436,1752719445756,-5155.26,0.00018464,2]
[372633437,1752719445766,-1817.41,0.00018464,2]
[372633438,1752719445775,-460.0,0.00018464,2]
[372633439,1752719445785,-151.0,0.00018465,2]
[372633440,1752719445794,-151.0,0.00018465,2]
[372633441,1752719445803,-151.0,0.00018465,2]
[372633442,1752719445812,-156.466774,0.00018465,2]
[372633443,1752719445821,-460.0,0.00018465,2]
[372633444,1752719445831,-163.294332,0.00018465,2]
[372633445,1752719445840,-460.0,0.00018465,2]
[372633446,1752719445849,-165.831106,0.00018465,2]
[372633447,1752719445859,-502.94065623,0.00018465,2]
[372633448,1752719445869,-460.0,0.00018465,2]
[372633449,1752719445879,-844.0,0.00018465,2]
[372633450,1752719445888,-1413.3,0.00018465,2]
[372633451,1752719445897,-460.0,0.00018465,2]
[372633452,1752719445907,-461.82810224,0.00018465,2]
[372633453,1752719445916,-460.0,0.00018465,2]
[372633454,1752719445926,-460.0,0.00018465,2]
[372633455,1752719445935,-461.52116142,0.00018465,2]
[372633456,1752719445945,-460.0,0.00018465,2]
[372633457,1752719445954,-460.0,0.00018465,2]
[372633458,1752719445963,-2322.67,0.00018465,2]
[372633459,1752719445973,-460.0,0.00018465,2]
[372633460,1752719445982,-559.87,0.00018465,2]
[372633461,1752719445992,-460.0,0.00018465,2]
[372633462,1752719446001,-460.0,0.00018465,2]
[372633463,1752719446011,-6932.46,0.00018465,2]
[372633464,1752719446020,-461.71210192,0.00018465,2]
[372633465,1752719446029,-2885.56,0.00018465,2]
[372633466,1752719446039,-467.20306562,0.00018465,2]
[372633467,1752719446048,-557.44,0.00018465,2]
[372633468,1752719446057,-1225.84,0.00018465,2]
[372633469,1752719446067,-460.0,0.00018465,2]
[372633470,1752719446076,-151.0,0.00018466,2]
[372633471,1752719446085,-461.36559025,0.00018466,2]
[372633472,1752719446095,-467.49879131,0.00018466,2]
[372633474,1752719446104,-381.39566368,0.00018466,2]
[372633476,1752719446114,-460.0,0.00018466,2]
[372633477,1752719446123,-460.0,0.00018466,2]
[372633478,1752719446133,-460.0,0.00018466,2]
[372633479,1752719446145,-439.73831645,0.00018466,2]
[372633480,1752719446155,-460.0,0.00018466,2]
[372633481,1752719446164,-460.0,0.00018466,2]
[372633482,1752719446175,-466.54783455,0.00018466,2]
[372633483,1752719446184,-151.0,0.00018466,2]
[372633484,1752719446194,-460.0,0.00018466,2]
[372633485,1752719446203,-568.11034792,0.00018466,2]
[372633486,1752719446213,-460.0,0.00018466,2]
[372633487,1752719446224,-466.01849039,0.00018466,2]
[372633488,1752719446234,-460.0,0.00018466,2]
[372633489,1752719446245,-465.14445071,0.00018466,2]
[372633490,1752719446338,-382.22299282,0.00018466,2]
[372633491,1752719446348,-462.69329832,0.00018466,2]
[372633492,1752719446357,-463.62185701,0.00018466,2]
[372633493,1752719446367,-469.97642883,0.00018466,2]
[372633494,1752719446377,-462.22969858,0.00018466,2]
[372633495,1752719446388,-873.14,0.00018466,2]
[372633496,1752719446397,-464.38269016,0.00018466,2]
[372633497,1752719446406,-464.98317774,0.00018466,2]
[372633498,1752719446416,-330.61426934,0.00018466,2]
[372633499,1752719446425,-460.0,0.00018466,2]
[372633500,1752719446435,-460.0,0.00018466,2]
[372633501,1752719446445,-374.8310239,0.00018466,2]
[372633502,1752719446454,-460.0,0.00018466,2]
[372633503,1752719446464,-151.0,0.00018466,2]
[372633504,1752719446474,-151.0,0.00018466,2]
[372633505,1752719446483,-460.0,0.00018466,2]
[372633506,1752719446495,-460.0,0.00018466,2]
[372633507,1752719446504,-460.0,0.00018466,2]
[372633508,1752719446513,-460.0,0.00018466,2]
[372633509,1752719446522,-151.0,0.00018466,2]
[372633510,1752719446531,-462.38900024,0.00018466,2]
[372633512,1752719446541,-460.0,0.00018466,2]
[372633514,1752719446550,-511.20347384,0.00018466,2]
[372633515,1752719446561,-460.0,0.00018466,2]
[372633516,1752719446571,-542.47154905,0.00018466,2]
[372633517,1752719446581,-460.0,0.00018466,2]
[372633518,1752719446590,-460.0,0.00018466,2]
[372633519,1752719446599,-460.0,0.00018466,2]
[372633520,1752719446609,-460.0,0.00018466,2]
[372633521,1752719446618,-460.0,0.00018466,2]
[372633522,1752719446628,-462.4575643,0.00018466,2]
[372633523,1752719446638,-552.51,0.00018466,2]
[372633524,1752719446647,-405.13688,0.00018467,2]
[372633525,1752719446656,-405.13688,0.00018467,2]
[372633526,1752719446666,-151.0,0.00018468,2]
[372633527,1752719446675,-162.02377,0.00018468,2]
[372633528,1752719446684,-151.0,0.00018468,2]
[372633529,1752719446694,-151.0,0.00018468,2]
[372633530,1752719446703,-460.0,0.00018468,2]
[372633531,1752719446712,-460.0,0.00018468,2]
[372633532,1752719446722,-460.0,0.00018468,2]
[372633533,1752719446731,-405.13688,0.00018469,2]
[372633534,1752719446740,-405.13688,0.00018469,2]
[372633535,1752719446750,-460.0,0.00018469,2]
[372633536,1752719446761,-151.0,0.00018471,2]
[372633537,1752719446770,-405.13688,0.00018471,2]
[372633538,1752719446780,-405.13688,0.00018471,2]
[372633539,1752719446789,-151.0,0.00018471,2]
[372633540,1752719446799,-151.0,0.00018471,2]
[372633541,1752719446810,-168.0,0.00018536,2]
[372633542,1752719446820,-500.0,0.00018611,2]
[372633543,1752719446829,-500.91622746,0.00018611,2]
[372633544,1752719446839,-514.98444886,0.00018611,2]
[372633545,1752719446849,-260.0,0.00018615,2]
[372633546,1752719446858,-424.82628676,0.00018641,2]
[372633547,1752719446868,-460.0,0.00018728,2]
[372633548,1752719446879,-460.0,0.00018728,2]
[372633549,1752719446889,-460.0,0.00018728,2]
[372633550,1752719446898,-460.0,0.00018729,2]
[372633551,1752719446908,-460.0,0.00018729,2]
[372633552,1752719446917,-460.0,0.0001873,2]
[372633553,1752719446926,-460.0,0.0001873,2]
[372633554,1752719446936,-460.0,0.0001873,2]
[372633555,1752719446945,-460.0,0.0001873,2]
[372633556,1752719446954,-6803.47,0.0001873,2]
[372633557,1752719446963,-3924.16,0.0001873,2]
[372633558,1752719446973,-969.65,0.0001873,2]
[372633559,1752719446982,-523.17678679,0.0001873,2]
[372633560,1752719446991,-491.17,0.0001873,2]
[372633561,1752719447000,-460.0,0.0001873,2]
[372633562,1752719447010,-3078.04,0.0001873,2]
[372633563,1752719447019,-2574.76,0.0001873,2]
[372633564,1752719447028,-460.0,0.0001873,2]
[372633565,1752719447037,-460.0,0.0001873,2]
[372633566,1752719447047,-2463.94,0.0001873,2]
[372633567,1752719447056,-749.21,0.0001873,2]
[372633568,1752719447066,-460.0,0.0001873,2]
[372633569,1752719447075,-460.0,0.00018731,2]
[372633570,1752719447084,-466.24462233,0.00018732,2]
[372633571,1752719447094,-460.0,0.00018732,2]
[372633572,1752719447103,-1864.41,0.00018732,2]
[372633573,1752719447112,-529.36,0.00018732,2]
[372633574,1752719447122,-460.0,0.00018732,2]
[372633575,1752719447134,-741.74,0.00018732,2]
[372633576,1752719447146,-460.0,0.00018732,2]
[372633577,1752719447155,-653.85,0.00018732,2]
[372633578,1752719447164,-668.12,0.00018732,2]
[372633579,1752719447175,-460.0,0.00018732,2]
[372633580,1752719447185,-460.0,0.00018732,2]
[372633581,1752719447195,-719.56,0.00018732,2]
[372633582,1752719447206,-1314.57,0.00018732,2]
[372633583,1752719447216,-460.0,0.00018732,2]
[372633584,1752719447226,-691.68,0.00018732,2]
[372633585,1752719447235,-460.0,0.00018732,2]
[372633586,1752719447245,-460.0,0.00018732,2]
[372633587,1752719447254,-460.0,0.00018732,2]
[372633588,1752719447263,-460.0,0.00018732,2]
[372633589,1752719447273,-460.0,0.00018732,2]
[372633590,1752719447282,-460.0,0.00018732,2]
[372633591,1752719447291,-1569.29,0.00018732,2]
[372633592,1752719447300,-466.84994913,0.00018733,2]
[372633593,1752719447310,-460.0,0.00018736,2]
[372633594,1752719447320,-157.067217,0.00018736,2]
[372633595,1752719447329,-460.0,0.00018736,2]
[372633596,1752719447338,-460.0,0.00018736,2]
[372633597,1752719447348,-151.0,0.00018736,2]
[372633598,1752719447357,-151.0,0.00018736,2]
[372633599,1752719447366,-468.32179082,0.00018736,2]
[372633600,1752719447376,-202.887064,0.00018736,2]
[372633601,1752719447387,-460.0,0.00018736,2]
[372633602,1752719447397,-708.24,0.00018736,2]
[372633603,1752719447406,-460.0,0.00018736,2]
[372633604,1752719447415,-460.0,0.00018736,2]
[372633605,1752719447425,-567.86,0.00018736,2]
[372633606,1752719447434,-460.0,0.00018736,2]
[372633607,1752719447443,-460.0,0.00018736,2]
[372633608,1752719447453,-4688.52,0.00018736,2]
[372633609,1752719447463,-464.43393097,0.00018736,2]
[372633610,1752719447472,-731.29,0.00018736,2]
[372633611,1752719447482,-460.0,0.00018737,2]
[372633612,1752719447492,-560.39,0.00018737,2]
[372633613,1752719447502,-745.09,0.00018737,2]
[372633614,1752719447511,-460.0,0.00018737,2]
[372633615,1752719447520,-801.54,0.00018737,2]
[372633616,1752719447530,-471.04167887,0.00018737,2]
[372633617,1752719447539,-576.08884832,0.00018737,2]
[372633618,1752719447547,-460.0,0.00018737,2]
[372633619,1752719447555,-572.02,0.00018737,2]
[372633620,1752719447563,-460.0,0.00018737,2]
[372633621,1752719447572,-460.0,0.00018737,2]
[372633622,1752719447580,-495.28,0.00018737,2]
[372633623,1752719447589,-368.08341252,0.00018737,2]
[372633624,1752719447597,-896.34,0.00018737,2]
[372633625,1752719447606,-477.37336745,0.00018737,2]
[372633626,1752719447615,-948.09,0.00018737,2]
[372633627,1752719447623,-472.22268934,0.00018737,2]
[372633628,1752719447633,-460.0,0.00018737,2]
[372633629,1752719447641,-467.2504528,0.00018737,2]
[372633630,1752719447650,-460.0,0.00018737,2]
[372633631,1752719447659,-218.03652412,0.00018737,2]
[372633632,1752719447667,-802.39,0.00018737,2]
[372633633,1752719447676,-528.16,0.00018737,2]
[372633634,1752719447685,-460.0,0.00018737,2]
[372633635,1752719447694,-460.0,0.00018737,2]
[372633636,1752719447704,-585.87,0.00018737,2]
[372633637,1752719447713,-460.0,0.00018737,2]
[372633638,1752719447723,-470.27357904,0.00018737,2]
[372633639,1752719447732,-1881.04,0.00018738,2]
[372633640,1752719447741,-460.0,0.00018738,2]
[372633641,1752719447750,-5155.26,0.00018738,2]
[372633642,1752719447758,-1817.41,0.00018738,2]
[372633643,1752719447767,-151.0,0.00018739,2]
[372633644,1752719447776,-295.425584,0.00018739,2]
[372633645,1752719447786,-460.0,0.00018739,2]
[372633646,1752719447794,-465.37500728,0.00018739,2]
[372633647,1752719447803,-844.0,0.00018739,2]
[372633648,1752719447812,-1413.3,0.00018739,2]
[372633649,1752719447821,-460.0,0.00018739,2]
[372633650,1752719447830,-464.03538361,0.00018739,2]
[372633651,1752719447839,-460.0,0.00018739,2]
[372633652,1752719447847,-464.39187266,0.00018739,2]
[372633653,1752719447856,-2322.67,0.00018739,2]
[372633654,1752719447865,-471.36502063,0.00018739,2]
[372633655,1752719447873,-559.87,0.00018739,2]
[372633656,1752719447883,-467.87061716,0.00018739,2]
[372633657,1752719447892,-462.09668617,0.00018739,2]
[372633658,1752719447901,-6932.46,0.00018739,2]
[372633659,1752719447910,-2885.56,0.00018739,2]
[372633660,1752719447920,-557.44,0.00018739,2]
[372633661,1752719447930,-1225.84,0.00018739,2]
[372633662,1752719447939,-151.0,0.0001874,2]
[372633663,1752719447948,-460.0,0.0001874,2]
[372633664,1752719447957,-460.0,0.0001874,2]
[372633665,1752719447966,-460.0,0.0001874,2]
[372633666,1752719447975,-151.0,0.0001874,2]
[372633667,1752719447985,-460.0,0.0001874,2]
[372633668,1752719448084,-460.0,0.0001874,2]
[372633669,1752719448094,-873.14,0.0001874,2]
[372633670,1752719448104,-460.0,0.0001874,2]
[372633671,1752719448113,-460.0,0.0001874,2]
[372633672,1752719448122,-463.80542899,0.0001874,2]
[372633673,1752719448131,-460.0,0.0001874,2]
[372633674,1752719448144,-460.0,0.0001874,2]
[372633675,1752719448153,-460.0,0.0001874,2]
[372633676,1752719448162,-178.08125072,0.0001874,2]
[372633677,1752719448172,-463.25652406,0.0001874,2]
[372633678,1752719448182,-281.60881534,0.0001874,2]
[372633679,1752719448191,-460.0,0.0001874,2]
[372633680,1752719448200,-460.0,0.0001874,2]
[372633681,1752719448210,-460.0,0.0001874,2]
[372633682,1752719448222,-460.0,0.0001874,2]
[372633683,1752719448231,-405.13688,0.00018741,2]
[372633684,1752719448240,-405.13688,0.00018741,2]
[372633685,1752719448249,-151.0,0.00018742,2]
[372633686,1752719448258,-151.0,0.00018742,2]
[372633687,1752719448267,-462.12568775,0.00018742,2]
[372633688,1752719448276,-460.0,0.00018742,2]
[372633689,1752719448285,-405.13688,0.00018743,2]
[372633690,1752719448296,-405.13688,0.00018743,2]
[372633691,1752719448305,-460.0,0.00018743,2]
[372633692,1752719448315,-151.0,0.00018743,2]
[372633693,1752719448324,-151.0,0.00018743,2]
[372633694,1752719448332,-978.9848381,0.00018746,2]
[372633695,1752719448341,-168.0,0.00018759,2]
[372633696,1752719448350,-385.80396192,0.00018762,2]
[372633697,1752719448359,-500.0,0.00018762,2]
[372633698,1752719448368,-500.0,0.00018762,2]
[372633699,1752719448377,-500.0,0.00018762,2]
[372633700,1752719448388,-162.78318151,0.00018762,2]
[372633701,1752719448398,-2000.0,0.000188,2]
[372633702,1752719448407,-2000.0,0.000188,3]
[372633703,1752719448429,-2000.0,0.000188,4]
[372633704,1752719448443,-500.67621022,0.00018815,2]
[372633705,1752719448453,-800.0,0.00018842,2]
[372633706,1752719448463,-151.0,0.000189,2]
[372633707,1752719448473,-10323.82667504,0.000189,2]
[372633708,1752719448483,-536.61812896,0.00018912,2]
[372633709,1752719448492,-513.88759956,0.00018923,2]
[372633710,1752719448502,-151.0,0.00019,2]
[372633711,1752719448512,-460.0,0.00019003,2]
[372633712,1752719448522,-460.0,0.00019003,2]
[372633713,1752719448532,-460.0,0.00019004,2]
[372633714,1752719448542,-460.0,0.00019004,2]
[372633715,1752719448552,-460.0,0.00019004,2]
[372633716,1752719448562,-6803.47,0.00019004,2]
[372633717,1752719448571,-3924.16,0.00019004,2]
[372633718,1752719448582,-969.65,0.00019004,2]
[372633719,1752719448592,-491.17,0.00019004,2]
[372633720,1752719448602,-460.0,0.00019004,2]
[372633721,1752719448612,-3078.04,0.00019004,2]
[372633722,1752719448621,-2574.76,0.00019004,2]
[372633723,1752719448633,-460.0,0.00019004,2]
[372633724,1752719448643,-460.0,0.00019004,2]
[372633725,1752719448653,-2463.94,0.00019004,2]
[372633726,1752719448662,-749.21,0.00019004,2]
[372633727,1752719448672,-460.0,0.00019004,2]
[372633728,1752719448681,-460.0,0.00019005,2]
[372633729,1752719448691,-460.0,0.00019005,2]
[372633730,1752719448702,-460.0,0.00019006,2]
[372633731,1752719448712,-1864.41,0.00019006,2]
[372633732,1752719448722,-529.36,0.00019006,2]
[372633733,1752719448732,-460.0,0.00019006,2]
[372633734,1752719448743,-741.74,0.00019006,2]
[372633735,1752719448753,-460.0,0.00019006,2]
[372633736,1752719448763,-653.85,0.00019006,2]
[372633737,1752719448773,-668.12,0.00019006,2]
[372633738,1752719448783,-460.0,0.00019006,2]
[372633739,1752719448794,-460.0,0.00019006,2]
[372633740,1752719448804,-719.56,0.00019006,2]
[372633741,1752719448815,-1314.57,0.00019006,2]
[372633742,1752719448825,-460.0,0.00019006,2]
[372633743,1752719448836,-691.68,0.00019006,2]
[372633744,1752719448846,-460.0,0.00019006,2]
[372633745,1752719448857,-460.0,0.00019006,2]
[372633746,1752719448867,-460.0,0.00019006,2]
[372633747,1752719448878,-460.0,0.00019006,2]
[372633748,1752719448888,-460.0,0.00019006,2]
[372633749,1752719448899,-1569.29,0.00019006,2]
[372633750,1752719448910,-460.0,0.0001901,2]
[372633751,1752719448920,-460.0,0.0001901,2]
[372633752,1752719448930,-708.24,0.0001901,2]
[372633753,1752719448940,-471.36375535,0.0001901,2]
[372633754,1752719448951,-460.0,0.0001901,2]
[372633755,1752719448962,-567.86,0.0001901,2]
[372633756,1752719448972,-460.0,0.0001901,2]
[372633757,1752719448983,-460.0,0.0001901,2]
[372633758,1752719448993,-4688.52,0.0001901,2]
[372633759,1752719449003,-731.29,0.0001901,2]
[372633760,1752719449014,-460.0,0.00019011,2]
[372633761,1752719449024,-560.39,0.00019011,2]
[372633762,1752719449038,-745.09,0.00019011,2]
[372633763,1752719449050,-460.0,0.00019011,2]
[372633764,1752719449061,-801.54,0.00019011,2]
[372633765,1752719449072,-480.91300054,0.00019011,2]
[372633766,1752719449083,-572.02,0.00019011,2]
[372633767,1752719449094,-460.0,0.00019011,2]
[372633768,1752719449105,-460.0,0.00019011,2]
[372633769,1752719449115,-495.28,0.00019011,2]
[372633770,1752719449126,-896.34,0.00019011,2]
[372633771,1752719449140,-151.0,0.00019011,2]
[372633772,1752719449151,-948.09,0.00019011,2]
[372633773,1752719449162,-151.0,0.00019011,2]
[372633774,1752719449172,-460.0,0.00019011,2]
[372633775,1752719449183,-460.0,0.00019011,2]
[372633776,1752719449195,-802.39,0.00019011,2]
[372633777,1752719449206,-528.16,0.00019011,2]
[372633778,1752719449218,-460.0,0.00019011,2]
[372633779,1752719449229,-460.0,0.00019011,2]
[372633780,1752719449240,-585.87,0.00019011,2]
[372633781,1752719449249,-460.0,0.00019011,2]
[372633782,1752719449259,-1881.04,0.00019012,2]
[372633783,1752719449269,-5155.26,0.00019012,2]
[372633784,1752719449279,-1817.41,0.00019012,2]
[372633785,1752719449288,-405.13688,0.00019013,2]
[372633786,1752719449299,-405.13688,0.00019013,2]
[372633787,1752719449310,-844.0,0.00019013,2]
[372633788,1752719449320,-1413.3,0.00019013,2]
[372633789,1752719449330,-460.0,0.00019013,2]
[372633790,1752719449340,-460.0,0.00019013,2]
[372633791,1752719449350,-2322.67,0.00019013,2]
[372633792,1752719449361,-559.87,0.00019013,2]